[Event "Titled Tuesday Blitz July 05 Late 2022"]
[White "Hu, Merric"]
[Black "Dardha, Daniel"]
[WhiteFideId "30906660"]
[BlackFideId "240990"]
[WhiteElo "1912"]
[BlackElo "2482"]
[Result "1-0"]
[Round "01"]
[TimeControl "180+1"]
[Date "2022.07.06"]
[WhiteClock "0:00:32"]
[BlackClock "0:00:16"]

1. e4 {[%clk 0:02:22]}  e5 {[%clk 0:02:59]} 2. Nf3 {[%clk 0:02:22]}  Nc6 {[%clk 0:02:59]} 3. Bc4 {[%clk 0:02:23]}  Bc5 {[%clk 0:02:57]} 4. c3 {[%clk 0:02:23]}  Nf6 {[%clk 0:02:54]} 5. O-O {[%clk 0:02:20]}  Nxe4 {[%clk 0:02:52]} 6. d4 {[%clk 0:02:17]}  exd4 {[%clk 0:02:51]} 7. cxd4 {[%clk 0:02:18]}  Bb6 {[%clk 0:02:48]} 8. d5 {[%clk 0:02:17]}  Ne7 {[%clk 0:02:47]} 9. Qe2 {[%clk 0:02:10]}  Nd6 {[%clk 0:02:27]} 10. Re1 {[%clk 0:02:06]}  Nxc4 {[%clk 0:02:24]} 11. Qxc4 {[%clk 0:02:05]}  O-O {[%clk 0:02:09]} 12. Bg5 {[%clk 0:02:02]}  Re8 {[%clk 0:02:09]} 13. d6 {[%clk 0:01:42]}  cxd6 {[%clk 0:02:04]} 14. Nc3 {[%clk 0:01:41]}  h6 {[%clk 0:01:46]} 15. Bh4 {[%clk 0:01:39]}  Kf8 {[%clk 0:00:50]} 16. Nd5 {[%clk 0:01:33]}  f6 {[%clk 0:00:50]} 17. Nxf6 {[%clk 0:01:16]}  Bxf2+ {[%clk 0:00:36]} 18. Kxf2 {[%clk 0:00:59]}  Qb6+ {[%clk 0:00:35]} 19. Kf1 {[%clk 0:00:57]}  gxf6 {[%clk 0:00:34]} 20. Bxf6 {[%clk 0:00:35]}  d5 {[%clk 0:00:33]} 21. Qf4 {[%clk 0:00:34]}  Kg8 {[%clk 0:00:16]} 22. Qg4+ {[%clk 0:00:32]} 1-0


[Site "https://www.chess.com"]

[Event "Titled Tuesday Blitz July 05 Late 2022"]
[White "Koc, Przemyslaw"]
[Black "Shimanov, Aleksandr"]
[WhiteFideId "1109081"]
[BlackFideId "4198603"]
[WhiteElo "2134"]
[BlackElo "2605"]
[Result "1-0"]
[Round "01"]
[TimeControl "180+1"]
[Date "2022.07.05"]
[WhiteClock "0:00:14"]
[BlackClock "0:00:07"]

1. d4 {[%clk 0:03:00]}  Nf6 {[%clk 0:02:58]} 2. Bg5 {[%clk 0:03:01]}  Ne4 {[%clk 0:02:48]} 3. Bf4 {[%clk 0:03:01]}  d5 {[%clk 0:02:47]} 4. Nd2 {[%clk 0:03:00]}  Bf5 {[%clk 0:02:45]} 5. f3 {[%clk 0:03:00]}  Nxd2 {[%clk 0:02:45]} 6. Qxd2 {[%clk 0:03:01]}  e6 {[%clk 0:02:45]} 7. h4 {[%clk 0:03:00]}  h5 {[%clk 0:02:45]} 8. e3 {[%clk 0:02:59]}  a6 {[%clk 0:02:44]} 9. Bd3 {[%clk 0:02:58]}  Bxd3 {[%clk 0:02:44]} 10. cxd3 {[%clk 0:02:59]}  c5 {[%clk 0:02:42]} 11. dxc5 {[%clk 0:02:57]}  Bxc5 {[%clk 0:02:43]} 12. d4 {[%clk 0:02:58]}  Be7 {[%clk 0:02:43]} 13. g3 {[%clk 0:02:46]}  Nc6 {[%clk 0:02:40]} 14. Ne2 {[%clk 0:02:45]}  Rc8 {[%clk 0:02:33]} 15. Kf2 {[%clk 0:02:38]}  f6 {[%clk 0:02:20]} 16. Qd3 {[%clk 0:02:29]}  Kf7 {[%clk 0:02:18]} 17. a3 {[%clk 0:02:27]}  Qb6 {[%clk 0:02:07]} 18. b4 {[%clk 0:02:25]}  Na7 {[%clk 0:02:06]} 19. Nc3 {[%clk 0:02:20]}  Rc4 {[%clk 0:02:04]} 20. g4 {[%clk 0:02:11]}  hxg4 {[%clk 0:01:57]} 21. fxg4 {[%clk 0:02:11]}  Nb5 {[%clk 0:01:57]} 22. Na4 {[%clk 0:01:52]}  Qc6 {[%clk 0:01:56]} 23. Nc5 {[%clk 0:01:50]}  b6 {[%clk 0:01:53]} 24. h5 {[%clk 0:01:47]}  f5 {[%clk 0:01:23]} 25. Nxa6 {[%clk 0:01:26]}  Rc3 {[%clk 0:01:10]} 26. Qb1 {[%clk 0:01:25]}  Rc2+ {[%clk 0:01:10]} 27. Kf3 {[%clk 0:01:22]}  Qc3 {[%clk 0:01:06]} 28. Qd1 {[%clk 0:01:17]}  Bf6 {[%clk 0:01:03]} 29. gxf5 {[%clk 0:00:54]}  Nxd4+ {[%clk 0:01:01]} 30. Kg4 {[%clk 0:00:50]}  Nxf5 {[%clk 0:00:57]} 31. Rc1 {[%clk 0:00:41]}  Rxc1 {[%clk 0:00:17]} 32. Qxc1 {[%clk 0:00:42]}  Qd3 {[%clk 0:00:18]} 33. Qc7+ {[%clk 0:00:39]}  Kg8 {[%clk 0:00:18]} 34. Qc8+ {[%clk 0:00:30]}  Kh7 {[%clk 0:00:18]} 35. Qxe6 {[%clk 0:00:31]}  Ne7 {[%clk 0:00:08]} 36. h6 {[%clk 0:00:26]}  Kg6 {[%clk 0:00:04]} 37. Kf3 {[%clk 0:00:16]}  Qe4+ {[%clk 0:00:04]} 38. Qxe4+ {[%clk 0:00:16]}  dxe4+ {[%clk 0:00:05]} 39. Kxe4 {[%clk 0:00:17]}  gxh6 {[%clk 0:00:06]} 40. Nc7 {[%clk 0:00:16]}  h5 {[%clk 0:00:06]} 41. Rg1+ {[%clk 0:00:14]}  Kf7 {[%clk 0:00:06]} 42. Nd5 {[%clk 0:00:15]}  Nxd5 {[%clk 0:00:05]} 43. Kxd5 {[%clk 0:00:15]}  h4 {[%clk 0:00:05]} 44. e4 {[%clk 0:00:15]}  Rh5+ {[%clk 0:00:06]} 45. e5 {[%clk 0:00:15]}  Bg7 {[%clk 0:00:06]} 46. Kd6 {[%clk 0:00:15]}  Bf8+ {[%clk 0:00:06]} 47. Kd7 {[%clk 0:00:16]}  h3 {[%clk 0:00:05]} 48. e6+ {[%clk 0:00:15]}  Kf6 {[%clk 0:00:06]} 49. Rf1 {[%clk 0:00:15]}  Rd5+ {[%clk 0:00:06]} 50. Kc6 {[%clk 0:00:14]}  Kxe6 {[%clk 0:00:06]} 51. Re1+ {[%clk 0:00:13]}  Kf5 {[%clk 0:00:07]} 52. Kxd5 {[%clk 0:00:12]}  Kxf4 {[%clk 0:00:07]} 53. Rf1+ {[%clk 0:00:13]}  Ke3 {[%clk 0:00:07]} 54. Rxf8 {[%clk 0:00:14]} 1-0


[Site "https://www.chess.com"]

[Event "Titled Tuesday Blitz July 05 Late 2022"]
[White "Matinian, Nikita"]
[Black "Kubatko, Ivan"]
[WhiteFideId "24129100"]
[BlackFideId "24111473"]
[WhiteElo "2422"]
[BlackElo "2285"]
[Result "1-0"]
[Round "01"]
[TimeControl "180+1"]
[Date "2022.07.06"]
[WhiteClock "0:00:20"]
[BlackClock "0:00:03"]

1. e4 {[%clk 0:03:00]}  d5 {[%clk 0:02:54]} 2. exd5 {[%clk 0:03:00]}  Qxd5 {[%clk 0:02:39]} 3. Nf3 {[%clk 0:03:00]}  Nf6 {[%clk 0:02:37]} 4. Nc3 {[%clk 0:02:59]}  Qa5 {[%clk 0:02:37]} 5. Bc4 {[%clk 0:02:58]}  Bg4 {[%clk 0:02:32]} 6. h3 {[%clk 0:02:57]}  Bh5 {[%clk 0:02:28]} 7. d3 {[%clk 0:02:53]}  c6 {[%clk 0:02:06]} 8. Bd2 {[%clk 0:02:43]}  e6 {[%clk 0:02:05]} 9. O-O {[%clk 0:02:39]}  Qc7 {[%clk 0:02:02]} 10. Re1 {[%clk 0:02:30]}  Nbd7 {[%clk 0:01:46]} 11. a4 {[%clk 0:02:28]}  Bd6 {[%clk 0:01:36]} 12. g4 {[%clk 0:02:17]}  Bg6 {[%clk 0:01:35]} 13. Nh4 {[%clk 0:01:59]}  O-O-O {[%clk 0:01:32]} 14. a5 {[%clk 0:01:57]}  a6 {[%clk 0:01:15]} 15. Na4 {[%clk 0:01:57]}  Kb8 {[%clk 0:01:10]} 16. Qf3 {[%clk 0:01:55]}  Ne5 {[%clk 0:01:08]} 17. Qg2 {[%clk 0:01:50]}  Nxc4 {[%clk 0:01:06]} 18. dxc4 {[%clk 0:01:50]}  Bxc2 {[%clk 0:00:51]} 19. Nb6 {[%clk 0:01:40]}  Bh2+ {[%clk 0:00:47]} 20. Qxh2 {[%clk 0:01:39]}  Qxh2+ {[%clk 0:00:48]} 21. Kxh2 {[%clk 0:01:40]}  Rxd2 {[%clk 0:00:47]} 22. Nf3 {[%clk 0:01:35]}  Rdd8 {[%clk 0:00:32]} 23. Ne5 {[%clk 0:01:35]}  Rhf8 {[%clk 0:00:32]} 24. g5 {[%clk 0:01:25]}  Nh5 {[%clk 0:00:29]} 25. Ned7+ {[%clk 0:01:23]}  Kc7 {[%clk 0:00:26]} 26. Nxf8 {[%clk 0:01:24]}  Rxf8 {[%clk 0:00:26]} 27. Rac1 {[%clk 0:01:25]}  Bf5 {[%clk 0:00:20]} 28. Rcd1 {[%clk 0:01:25]}  e5 {[%clk 0:00:17]} 29. Rxe5 {[%clk 0:01:25]}  Be6 {[%clk 0:00:14]} 30. Rd4 {[%clk 0:01:17]}  g6 {[%clk 0:00:07]} 31. b4 {[%clk 0:01:16]}  Ng7 {[%clk 0:00:06]} 32. Rd2 {[%clk 0:01:04]}  Rd8 {[%clk 0:00:05]} 33. Rxd8 {[%clk 0:01:03]}  Kxd8 {[%clk 0:00:06]} 34. Re2 {[%clk 0:01:03]}  Nf5 {[%clk 0:00:06]} 35. Rd2+ {[%clk 0:01:03]}  Kc7 {[%clk 0:00:05]} 36. f3 {[%clk 0:00:51]}  Nd6 {[%clk 0:00:05]} 37. c5 {[%clk 0:00:47]}  Nf5 {[%clk 0:00:04]} 38. Kg1 {[%clk 0:00:47]}  h6 {[%clk 0:00:03]} 39. gxh6 {[%clk 0:00:46]}  Nxh6 {[%clk 0:00:04]} 40. f4 {[%clk 0:00:43]}  Nf5 {[%clk 0:00:02]} 41. Kf2 {[%clk 0:00:43]}  Nh6 {[%clk 0:00:02]} 42. Kg3 {[%clk 0:00:43]}  Nf5+ {[%clk 0:00:03]} 43. Kf3 {[%clk 0:00:40]}  Ne7 {[%clk 0:00:03]} 44. h4 {[%clk 0:00:38]}  f6 {[%clk 0:00:03]} 45. Re2 {[%clk 0:00:35]}  Bd5+ {[%clk 0:00:03]} 46. Kf2 {[%clk 0:00:31]}  Nf5 {[%clk 0:00:03]} 47. Nxd5+ {[%clk 0:00:30]}  cxd5 {[%clk 0:00:03]} 48. Re6 {[%clk 0:00:28]}  Nxh4 {[%clk 0:00:03]} 49. Rxf6 {[%clk 0:00:28]}  d4 {[%clk 0:00:04]} 50. Ke2 {[%clk 0:00:24]}  Kd7 {[%clk 0:00:03]} 51. Kd3 {[%clk 0:00:21]}  Ke7 {[%clk 0:00:04]} 52. Rb6 {[%clk 0:00:21]}  Nf5 {[%clk 0:00:03]} 53. Rxb7+ {[%clk 0:00:21]}  Kf6 {[%clk 0:00:04]} 54. c6 {[%clk 0:00:21]}  Ke6 {[%clk 0:00:04]} 55. Rb6 {[%clk 0:00:20]}  Kd6 {[%clk 0:00:03]} 56. Rxa6 {[%clk 0:00:20]}  Kc7 {[%clk 0:00:03]} 57. b5 {[%clk 0:00:20]} 1-0


[Site "https://www.chess.com"]

[Event "Titled Tuesday Blitz July 05 Late 2022"]
[White "Obrien, Matthew"]
[Black "Svane, Rasmus"]
[WhiteFideId "2059150"]
[BlackFideId "4657101"]
[WhiteElo "2518"]
[BlackElo "2674"]
[Result "0-1"]
[Round "01"]
[TimeControl "180+1"]
[Date "2022.07.05"]
[WhiteClock "0:00:28"]
[BlackClock "0:00:57"]

1. e4 {[%clk 0:03:00]}  c6 {[%clk 0:03:00]} 2. Nf3 {[%clk 0:03:00]}  d5 {[%clk 0:03:01]} 3. d3 {[%clk 0:03:01]}  Bg4 {[%clk 0:02:55]} 4. h3 {[%clk 0:03:01]}  Bh5 {[%clk 0:02:56]} 5. g4 {[%clk 0:03:00]}  Bg6 {[%clk 0:02:56]} 6. h4 {[%clk 0:03:01]}  h6 {[%clk 0:02:54]} 7. Ne5 {[%clk 0:02:53]}  Bh7 {[%clk 0:02:51]} 8. Bg2 {[%clk 0:02:42]}  e6 {[%clk 0:02:42]} 9. Nd2 {[%clk 0:02:34]}  Bd6 {[%clk 0:02:41]} 10. d4 {[%clk 0:02:22]}  Qc7 {[%clk 0:02:31]} 11. O-O {[%clk 0:01:55]}  Nf6 {[%clk 0:02:27]} 12. Re1 {[%clk 0:01:45]}  Bxe5 {[%clk 0:02:19]} 13. dxe5 {[%clk 0:01:45]}  Nxe4 {[%clk 0:02:19]} 14. Nxe4 {[%clk 0:01:40]}  Bxe4 {[%clk 0:02:18]} 15. Bxe4 {[%clk 0:01:40]}  dxe4 {[%clk 0:02:19]} 16. Rxe4 {[%clk 0:01:40]}  Nd7 {[%clk 0:02:18]} 17. Bf4 {[%clk 0:01:35]}  O-O-O {[%clk 0:02:14]} 18. Qe2 {[%clk 0:01:30]}  g5 {[%clk 0:01:44]} 19. hxg5 {[%clk 0:01:26]}  hxg5 {[%clk 0:01:44]} 20. Bxg5 {[%clk 0:01:27]}  Rdg8 {[%clk 0:01:43]} 21. Bd2 {[%clk 0:01:11]}  f5 {[%clk 0:01:27]} 22. Rd4 {[%clk 0:00:49]}  Nxe5 {[%clk 0:01:17]} 23. Re1 {[%clk 0:00:28]}  Qh7 {[%clk 0:00:57]} 0-1


[Site "https://www.chess.com"]

[Event "Titled Tuesday Blitz July 05 Late 2022"]
[White "Ozates, Tuna"]
[Black "Tabatabaei, M. Amin"]
[WhiteFideId "6354521"]
[BlackFideId "12521213"]
[WhiteElo "1887"]
[BlackElo "2544"]
[Result "0-1"]
[Round "01"]
[TimeControl "180+1"]
[Date "2022.07.05"]
[WhiteClock "0:01:53"]
[BlackClock "0:01:29"]

1. e4 {[%clk 0:03:00]}  c6 {[%clk 0:02:59]} 2. d4 {[%clk 0:02:59]}  d5 {[%clk 0:03:00]} 3. exd5 {[%clk 0:02:57]}  cxd5 {[%clk 0:03:01]} 4. c4 {[%clk 0:02:57]}  Nf6 {[%clk 0:03:01]} 5. Nc3 {[%clk 0:02:57]}  e6 {[%clk 0:03:01]} 6. Nf3 {[%clk 0:02:57]}  Bb4 {[%clk 0:03:02]} 7. a3 {[%clk 0:02:53]}  Bxc3+ {[%clk 0:02:59]} 8. bxc3 {[%clk 0:02:54]}  O-O {[%clk 0:03:00]} 9. Ne5 {[%clk 0:02:47]}  Nbd7 {[%clk 0:02:46]} 10. Nxd7 {[%clk 0:02:43]}  Bxd7 {[%clk 0:02:47]} 11. Bd2 {[%clk 0:02:38]}  Rc8 {[%clk 0:02:42]} 12. cxd5 {[%clk 0:02:35]}  exd5 {[%clk 0:02:42]} 13. Be2 {[%clk 0:02:34]}  Ne4 {[%clk 0:02:43]} 14. Rc1 {[%clk 0:02:26]}  Qa5 {[%clk 0:02:42]} 15. Qb3 {[%clk 0:02:26]}  Rfe8 {[%clk 0:02:38]} 16. f3 {[%clk 0:02:25]}  Nxd2 {[%clk 0:02:06]} 17. Kxd2 {[%clk 0:02:25]}  Qc7 {[%clk 0:02:07]} 18. g3 {[%clk 0:02:25]}  Qd6 {[%clk 0:02:06]} 19. Bd3 {[%clk 0:02:21]}  Qh6+ {[%clk 0:02:01]} 20. f4 {[%clk 0:02:20]}  Qh3 {[%clk 0:01:59]} 21. Bf1 {[%clk 0:02:12]}  Qe6 {[%clk 0:01:59]} 22. Bd3 {[%clk 0:02:06]}  Qe3+ {[%clk 0:01:55]} 23. Kc2 {[%clk 0:02:06]}  Rc6 {[%clk 0:01:33]} 24. Rce1 {[%clk 0:01:55]}  Qf2+ {[%clk 0:01:30]} 25. Kd1 {[%clk 0:01:53]}  Bg4+ {[%clk 0:01:29]} 0-1


[Site "https://www.chess.com"]

[Event "Titled Tuesday Blitz July 05 Late 2022"]
[White "Poltorak, Sebastian"]
[Black "He, Anthony"]
[WhiteFideId "1199498"]
[BlackFideId "2088215"]
[WhiteElo "2104"]
[BlackElo "2409"]
[Result "0-1"]
[Round "01"]
[TimeControl "180+1"]
[Date "2022.07.05"]
[WhiteClock "0:00:54"]
[BlackClock "0:00:37"]

1. d4 {[%clk 0:03:00]}  b5 {[%clk 0:01:47]} 2. e3 {[%clk 0:02:59]}  Bb7 {[%clk 0:01:45]} 3. Nf3 {[%clk 0:03:00]}  a6 {[%clk 0:01:45]} 4. b3 {[%clk 0:02:58]}  Nf6 {[%clk 0:01:44]} 5. Bb2 {[%clk 0:02:58]}  e6 {[%clk 0:01:44]} 6. Nbd2 {[%clk 0:02:57]}  c5 {[%clk 0:01:40]} 7. Be2 {[%clk 0:02:56]}  d5 {[%clk 0:01:40]} 8. c4 {[%clk 0:02:52]}  bxc4 {[%clk 0:01:35]} 9. bxc4 {[%clk 0:02:52]}  Nbd7 {[%clk 0:01:33]} 10. O-O {[%clk 0:02:52]}  cxd4 {[%clk 0:01:31]} 11. Nxd4 {[%clk 0:02:51]}  Be7 {[%clk 0:01:29]} 12. cxd5 {[%clk 0:02:48]}  Nxd5 {[%clk 0:01:25]} 13. Rc1 {[%clk 0:02:48]}  O-O {[%clk 0:01:24]} 14. Nc6 {[%clk 0:02:47]}  Bxc6 {[%clk 0:01:22]} 15. Rxc6 {[%clk 0:02:47]}  Rb8 {[%clk 0:01:18]} 16. Nb3 {[%clk 0:02:45]}  a5 {[%clk 0:01:13]} 17. Ba1 {[%clk 0:02:00]}  N7f6 {[%clk 0:01:05]} 18. Nd4 {[%clk 0:01:59]}  Nb4 {[%clk 0:01:04]} 19. Rc4 {[%clk 0:01:57]}  Rc8 {[%clk 0:00:55]} 20. a3 {[%clk 0:01:56]}  Rxc4 {[%clk 0:00:55]} 21. Bxc4 {[%clk 0:01:56]}  Nbd5 {[%clk 0:00:55]} 22. Nc6 {[%clk 0:01:56]}  Qc7 {[%clk 0:00:55]} 23. Nxe7+ {[%clk 0:01:56]}  Qxe7 {[%clk 0:00:55]} 24. Qa4 {[%clk 0:01:52]}  Nb6 {[%clk 0:00:53]} 25. Bxf6 {[%clk 0:01:47]}  gxf6 {[%clk 0:00:49]} 26. Qb5 {[%clk 0:01:42]}  Nxc4 {[%clk 0:00:50]} 27. Qxc4 {[%clk 0:01:42]}  Qxa3 {[%clk 0:00:50]} 28. Qd4 {[%clk 0:01:32]}  Qe7 {[%clk 0:00:50]} 29. Ra1 {[%clk 0:01:31]}  Ra8 {[%clk 0:00:50]} 30. Qe4 {[%clk 0:01:27]}  Rd8 {[%clk 0:00:47]} 31. h3 {[%clk 0:01:25]}  Rd5 {[%clk 0:00:47]} 32. Qc4 {[%clk 0:01:22]}  Kg7 {[%clk 0:00:46]} 33. h4 {[%clk 0:01:19]}  h5 {[%clk 0:00:44]} 34. Qc3 {[%clk 0:01:13]}  Qb4 {[%clk 0:00:39]} 35. Ra3 {[%clk 0:00:54]}  Rd1+ {[%clk 0:00:37]} 0-1


[Site "https://www.chess.com"]

[Event "Titled Tuesday Blitz July 05 Late 2022"]
[White "Przybylski, Wojciech"]
[Black "Fedoseev, Vladimir"]
[WhiteFideId "1117599"]
[BlackFideId "24130737"]
[WhiteElo "2133"]
[BlackElo "2726"]
[Result "0-1"]
[Round "01"]
[TimeControl "180+1"]
[Date "2022.07.05"]
[WhiteClock "0:00:03"]
[BlackClock "0:00:11"]

1. e4 {[%clk 0:02:58]}  c6 {[%clk 0:03:00]} 2. Nc3 {[%clk 0:02:50]}  d5 {[%clk 0:03:00]} 3. Nf3 {[%clk 0:02:49]}  Bg4 {[%clk 0:02:57]} 4. h3 {[%clk 0:02:48]}  Bxf3 {[%clk 0:02:57]} 5. Qxf3 {[%clk 0:02:49]}  e6 {[%clk 0:02:56]} 6. d4 {[%clk 0:02:48]}  Bb4 {[%clk 0:02:54]} 7. a3 {[%clk 0:02:44]}  dxe4 {[%clk 0:02:50]} 8. Qxe4 {[%clk 0:02:43]}  Nf6 {[%clk 0:02:49]} 9. Qh4 {[%clk 0:02:41]}  Be7 {[%clk 0:02:46]} 10. Bg5 {[%clk 0:02:28]}  Nbd7 {[%clk 0:02:44]} 11. O-O-O {[%clk 0:02:27]}  Qa5 {[%clk 0:02:36]} 12. Bd2 {[%clk 0:01:52]}  O-O-O {[%clk 0:02:30]} 13. Qg3 {[%clk 0:01:42]}  Rhg8 {[%clk 0:02:29]} 14. Nb5 {[%clk 0:01:35]}  Qb6 {[%clk 0:02:29]} 15. Nd6+ {[%clk 0:01:28]}  Bxd6 {[%clk 0:02:28]} 16. Qxd6 {[%clk 0:01:28]}  Nf8 {[%clk 0:02:03]} 17. Qe5 {[%clk 0:00:59]}  Qxd4 {[%clk 0:01:41]} 18. Qxd4 {[%clk 0:00:59]}  Rxd4 {[%clk 0:01:41]} 19. Bd3 {[%clk 0:00:58]}  Rd7 {[%clk 0:01:32]} 20. Be3 {[%clk 0:00:55]}  a6 {[%clk 0:01:30]} 21. c4 {[%clk 0:00:52]}  Ng6 {[%clk 0:01:29]} 22. Bb6 {[%clk 0:00:49]}  Nf4 {[%clk 0:01:25]} 23. Bf1 {[%clk 0:00:34]}  Rxd1+ {[%clk 0:01:23]} 24. Kxd1 {[%clk 0:00:33]}  e5 {[%clk 0:01:23]} 25. g3 {[%clk 0:00:29]}  Ne6 {[%clk 0:01:22]} 26. Bg2 {[%clk 0:00:27]}  Nd7 {[%clk 0:01:20]} 27. Ba5 {[%clk 0:00:23]}  b6 {[%clk 0:01:16]} 28. Bc3 {[%clk 0:00:23]}  Kc7 {[%clk 0:01:17]} 29. Re1 {[%clk 0:00:22]}  Kd6 {[%clk 0:01:11]} 30. b4 {[%clk 0:00:21]}  f6 {[%clk 0:01:01]} 31. Kc2 {[%clk 0:00:19]}  c5 {[%clk 0:01:00]} 32. Bd5 {[%clk 0:00:18]}  Re8 {[%clk 0:00:59]} 33. Kd3 {[%clk 0:00:17]}  b5 {[%clk 0:00:53]} 34. Be4 {[%clk 0:00:12]}  g6 {[%clk 0:00:48]} 35. cxb5 {[%clk 0:00:05]}  axb5 {[%clk 0:00:48]} 36. Kc2 {[%clk 0:00:05]}  Nd4+ {[%clk 0:00:46]} 37. Kb2 {[%clk 0:00:05]}  f5 {[%clk 0:00:36]} 38. Bg2 {[%clk 0:00:04]}  Ke6 {[%clk 0:00:29]} 39. f4 {[%clk 0:00:03]}  e4 {[%clk 0:00:26]} 40. Bf1 {[%clk 0:00:03]}  Nf3 {[%clk 0:00:19]} 41. Rd1 {[%clk 0:00:03]}  Rb8 {[%clk 0:00:18]} 42. Be2 {[%clk 0:00:02]}  c4 {[%clk 0:00:10]} 43. Bxf3 {[%clk 0:00:02]}  exf3 {[%clk 0:00:09]} 44. Re1+ {[%clk 0:00:03]}  Kd6 {[%clk 0:00:09]} 45. Rd1+ {[%clk 0:00:03]}  Kc6 {[%clk 0:00:09]} 46. Rf1 {[%clk 0:00:03]}  Nb6 {[%clk 0:00:10]} 47. Rxf3 {[%clk 0:00:03]}  Re8 {[%clk 0:00:10]} 48. Be5 {[%clk 0:00:03]}  Rd8 {[%clk 0:00:10]} 49. Kc2 {[%clk 0:00:03]}  Nd5 {[%clk 0:00:09]} 50. g4 {[%clk 0:00:04]}  Rf8 {[%clk 0:00:09]} 51. Rg3 {[%clk 0:00:04]}  fxg4 {[%clk 0:00:08]} 52. hxg4 {[%clk 0:00:04]}  Nxf4 {[%clk 0:00:09]} 53. Rf3 {[%clk 0:00:04]}  Ne6 {[%clk 0:00:09]} 54. Rh3 {[%clk 0:00:04]}  Rf7 {[%clk 0:00:09]} 55. a4 {[%clk 0:00:02]}  bxa4 {[%clk 0:00:08]} 56. Kc3 {[%clk 0:00:02]}  Kb5 {[%clk 0:00:09]} 57. Re3 {[%clk 0:00:03]}  Ng5 {[%clk 0:00:09]} 58. Bg3 {[%clk 0:00:02]}  Rf3 {[%clk 0:00:09]} 59. Rxf3 {[%clk 0:00:03]}  Nxf3 {[%clk 0:00:10]} 60. Bf4 {[%clk 0:00:03]}  h5 {[%clk 0:00:11]} 61. gxh5 {[%clk 0:00:03]}  gxh5 {[%clk 0:00:11]} 0-1


[Site "https://www.chess.com"]

[Event "Titled Tuesday Blitz July 05 Late 2022"]
[White "Reprintsev, Alexander"]
[Black "Paravyan, David"]
[WhiteFideId "14100541"]
[BlackFideId "4194985"]
[WhiteElo "2108"]
[BlackElo "2569"]
[Result "0-1"]
[Round "01"]
[TimeControl "180+1"]
[Date "2022.07.05"]
[WhiteClock "0:00:10"]
[BlackClock "0:02:00"]

1. e4 {[%clk 0:02:47]}  e5 {[%clk 0:02:57]} 2. Nf3 {[%clk 0:02:46]}  Nf6 {[%clk 0:02:58]} 3. Bc4 {[%clk 0:02:41]}  Nxe4 {[%clk 0:02:57]} 4. Nc3 {[%clk 0:02:40]}  Nf6 {[%clk 0:02:56]} 5. Nxe5 {[%clk 0:02:36]}  d5 {[%clk 0:02:56]} 6. Bb3 {[%clk 0:02:33]}  Bd6 {[%clk 0:02:55]} 7. d4 {[%clk 0:02:33]}  c6 {[%clk 0:02:55]} 8. Bg5 {[%clk 0:02:28]}  Nbd7 {[%clk 0:02:53]} 9. f4 {[%clk 0:01:57]}  O-O {[%clk 0:02:49]} 10. O-O {[%clk 0:01:28]}  Qb6 {[%clk 0:02:33]} 11. Nxd7 {[%clk 0:01:23]}  Nxd7 {[%clk 0:02:32]} 12. Na4 {[%clk 0:01:20]}  Qc7 {[%clk 0:02:25]} 13. c4 {[%clk 0:01:18]}  dxc4 {[%clk 0:02:25]} 14. Bxc4 {[%clk 0:01:18]}  b5 {[%clk 0:02:25]} 15. Bxf7+ {[%clk 0:00:52]}  Rxf7 {[%clk 0:02:25]} 16. Nc3 {[%clk 0:00:53]}  Nf8 {[%clk 0:02:25]} 17. d5 {[%clk 0:00:44]}  Bf5 {[%clk 0:02:22]} 18. Qb3 {[%clk 0:00:42]}  a6 {[%clk 0:02:20]} 19. dxc6 {[%clk 0:00:40]}  Qxc6 {[%clk 0:02:21]} 20. Rad1 {[%clk 0:00:36]}  Bc5+ {[%clk 0:02:15]} 21. Kh1 {[%clk 0:00:35]}  h6 {[%clk 0:02:12]} 22. Bh4 {[%clk 0:00:34]}  Re8 {[%clk 0:02:07]} 23. Nd5 {[%clk 0:00:28]}  Be6 {[%clk 0:02:05]} 24. Qf3 {[%clk 0:00:25]}  Bxd5 {[%clk 0:02:03]} 25. Rxd5 {[%clk 0:00:25]}  Rd7 {[%clk 0:02:02]} 26. Rfd1 {[%clk 0:00:24]}  Rxd5 {[%clk 0:02:02]} 27. Rxd5 {[%clk 0:00:24]}  Be7 {[%clk 0:01:58]} 28. Bxe7 {[%clk 0:00:14]}  Rxe7 {[%clk 0:01:59]} 29. h3 {[%clk 0:00:14]}  Rd7 {[%clk 0:01:56]} 30. Rxd7 {[%clk 0:00:11]}  Qxf3 {[%clk 0:01:56]} 31. Rxg7+ {[%clk 0:00:09]}  Kxg7 {[%clk 0:01:56]} 32. gxf3 {[%clk 0:00:09]}  Kf6 {[%clk 0:01:57]} 33. Kg2 {[%clk 0:00:10]}  Kf5 {[%clk 0:01:58]} 34. Kg3 {[%clk 0:00:10]}  Ng6 {[%clk 0:01:59]} 35. h4 {[%clk 0:00:10]}  h5 {[%clk 0:02:00]} 0-1


[Site "https://www.chess.com"]

[Event "Titled Tuesday Blitz July 05 Late 2022"]
[White "Barria Santos, Jose Guilherme"]
[Black "Cardoso Cardoso, Jose Gabriel"]
[WhiteFideId "1939300"]
[BlackFideId "4430492"]
[WhiteElo "2263"]
[BlackElo "2485"]
[Result "1-0"]
[Round "01"]
[TimeControl "180+1"]
[Date "2022.07.06"]
[WhiteClock "0:00:15"]
[BlackClock "0:00:02"]

1. e4 {[%clk 0:02:55]}  g6 {[%clk 0:02:43]} 2. d4 {[%clk 0:02:54]}  Bg7 {[%clk 0:02:24]} 3. Be3 {[%clk 0:02:53]}  d6 {[%clk 0:02:18]} 4. f3 {[%clk 0:02:53]}  c5 {[%clk 0:02:14]} 5. Nc3 {[%clk 0:02:46]}  cxd4 {[%clk 0:02:11]} 6. Bxd4 {[%clk 0:02:46]}  Nf6 {[%clk 0:02:10]} 7. Nge2 {[%clk 0:02:44]}  Nc6 {[%clk 0:02:08]} 8. Be3 {[%clk 0:02:42]}  Bd7 {[%clk 0:01:50]} 9. Qd2 {[%clk 0:02:38]}  Rc8 {[%clk 0:01:47]} 10. h4 {[%clk 0:02:33]}  Ne5 {[%clk 0:01:43]} 11. Nf4 {[%clk 0:02:32]}  h5 {[%clk 0:01:24]} 12. Be2 {[%clk 0:02:26]}  Nc4 {[%clk 0:00:51]} 13. Bxc4 {[%clk 0:02:25]}  Rxc4 {[%clk 0:00:52]} 14. Nfe2 {[%clk 0:02:23]}  b5 {[%clk 0:00:49]} 15. O-O-O {[%clk 0:02:19]}  b4 {[%clk 0:00:45]} 16. Nd5 {[%clk 0:02:19]}  Qa5 {[%clk 0:00:37]} 17. Kb1 {[%clk 0:02:16]}  Nxd5 {[%clk 0:00:36]} 18. exd5 {[%clk 0:01:53]}  Bf5 {[%clk 0:00:33]} 19. Rc1 {[%clk 0:01:52]}  O-O {[%clk 0:00:30]} 20. Ng3 {[%clk 0:01:14]}  Bxb2 {[%clk 0:00:19]} 21. Kxb2 {[%clk 0:01:05]}  Qa3+ {[%clk 0:00:18]} 22. Ka1 {[%clk 0:00:49]}  Bd7 {[%clk 0:00:12]} 23. Bd4 {[%clk 0:00:45]}  Rfc8 {[%clk 0:00:09]} 24. Bb2 {[%clk 0:00:43]}  Qa4 {[%clk 0:00:08]} 25. Qh6 {[%clk 0:00:43]}  Rc3 {[%clk 0:00:06]} 26. Nxh5 {[%clk 0:00:36]}  gxh5 {[%clk 0:00:07]} 27. Qg5+ {[%clk 0:00:36]}  Kf8 {[%clk 0:00:07]} 28. Rhe1 {[%clk 0:00:33]}  f6 {[%clk 0:00:02]} 29. Qh6+ {[%clk 0:00:24]}  Ke8 {[%clk 0:00:01]} 30. Qxf6 {[%clk 0:00:21]}  Kd8 {[%clk 0:00:01]} 31. Qxe7+ {[%clk 0:00:20]}  Kc7 {[%clk 0:00:02]} 32. Bxc3 {[%clk 0:00:15]}  bxc3 {[%clk 0:00:02]} 33. Qe3 {[%clk 0:00:16]}  Qa3 {[%clk 0:00:02]} 34. Rb1 {[%clk 0:00:13]}  Rb8 {[%clk 0:00:02]} 35. Rxb8 {[%clk 0:00:13]}  Kxb8 {[%clk 0:00:03]} 36. Rb1+ {[%clk 0:00:13]}  Kc7 {[%clk 0:00:04]} 37. Rb3 {[%clk 0:00:14]}  Qa6 {[%clk 0:00:02]} 38. Qxc3+ {[%clk 0:00:14]}  Kd8 {[%clk 0:00:03]} 39. Kb2 {[%clk 0:00:15]}  Qe2 {[%clk 0:00:02]} 40. Rb8+ {[%clk 0:00:15]}  Ke7 {[%clk 0:00:02]} 41. Qg7# {[%clk 0:00:15]} 1-0


[Site "https://www.chess.com"]